[Event "Titled Tuesday Blitz January 31 Late 2023"]
[White "Haszon, David"]
[Black "Mazurkiewicz, Michal"]
[WhiteFideId "733610"]
[BlackFideId "1124943"]
[WhiteElo "2264"]
[BlackElo "2145"]
[Result "1-0"]
[Round "07"]
[TimeControl "180+2"]
[Date "2023.01.31"]
[WhiteClock "0:00:04"]
[BlackClock "0:00:05"]

1. d4 {[%clk 0:03:00]}  Nf6 {[%clk 0:02:59]} 2. Bg5 {[%clk 0:02:58]}  e6 {[%clk 0:02:59]} 3. Nc3 {[%clk 0:02:57]}  h6 {[%clk 0:02:57]} 4. Bxf6 {[%clk 0:02:57]}  Qxf6 {[%clk 0:02:58]} 5. e4 {[%clk 0:02:58]}  Bb4 {[%clk 0:02:56]} 6. a3 {[%clk 0:02:56]}  Bxc3+ {[%clk 0:02:56]} 7. bxc3 {[%clk 0:02:57]}  d6 {[%clk 0:02:56]} 8. g3 {[%clk 0:02:54]}  e5 {[%clk 0:02:56]} 9. Bg2 {[%clk 0:02:54]}  O-O {[%clk 0:02:54]} 10. Ne2 {[%clk 0:02:53]}  c5 {[%clk 0:02:51]} 11. O-O {[%clk 0:02:53]}  Nc6 {[%clk 0:02:49]} 12. d5 {[%clk 0:02:49]}  Na5 {[%clk 0:02:49]} 13. f4 {[%clk 0:02:49]}  Qe7 {[%clk 0:02:46]} 14. f5 {[%clk 0:02:39]}  Qg5 {[%clk 0:02:41]} 15. Qd3 {[%clk 0:02:36]}  c4 {[%clk 0:01:17]} 16. Qf3 {[%clk 0:02:29]}  b6 {[%clk 0:01:14]} 17. h4 {[%clk 0:02:27]}  Qf6 {[%clk 0:01:10]} 18. Qf2 {[%clk 0:02:19]}  h5 {[%clk 0:01:03]} 19. Kh2 {[%clk 0:02:09]}  Nb7 {[%clk 0:00:58]} 20. Ng1 {[%clk 0:02:07]}  Nc5 {[%clk 0:00:55]} 21. Qe2 {[%clk 0:02:05]}  Qh6 {[%clk 0:00:53]} 22. Nh3 {[%clk 0:01:59]}  f6 {[%clk 0:00:45]} 23. Bf3 {[%clk 0:01:58]}  Bd7 {[%clk 0:00:37]} 24. Rae1 {[%clk 0:01:58]}  b5 {[%clk 0:00:33]} 25. Qd1 {[%clk 0:01:31]}  Be8 {[%clk 0:00:32]} 26. Rg1 {[%clk 0:01:30]}  Na4 {[%clk 0:00:30]} 27. Qa1 {[%clk 0:01:21]}  Qd2+ {[%clk 0:00:25]} 28. Rg2 {[%clk 0:01:21]}  Qxc3 {[%clk 0:00:24]} 29. Qd1 {[%clk 0:01:22]}  Qd4 {[%clk 0:00:18]} 30. Bxh5 {[%clk 0:01:16]}  Qxd1 {[%clk 0:00:15]} 31. Bxd1 {[%clk 0:01:17]}  a5 {[%clk 0:00:16]} 32. g4 {[%clk 0:01:17]}  b4 {[%clk 0:00:15]} 33. axb4 {[%clk 0:01:18]}  axb4 {[%clk 0:00:16]} 34. g5 {[%clk 0:01:19]}  Nc3 {[%clk 0:00:13]} 35. Bf3 {[%clk 0:01:11]}  Bb5 {[%clk 0:00:09]} 36. gxf6 {[%clk 0:01:11]}  Rxf6 {[%clk 0:00:10]} 37. Ng5 {[%clk 0:01:11]}  Bd7 {[%clk 0:00:09]} 38. Reg1 {[%clk 0:01:08]}  Ra7 {[%clk 0:00:08]} 39. h5 {[%clk 0:01:01]}  Bc8 {[%clk 0:00:07]} 40. Nh3 {[%clk 0:00:46]}  Rb7 {[%clk 0:00:06]} 41. Ra1 {[%clk 0:00:38]}  b3 {[%clk 0:00:06]} 42. cxb3 {[%clk 0:00:39]}  cxb3 {[%clk 0:00:06]} 43. Rb2 {[%clk 0:00:40]}  Nb5 {[%clk 0:00:03]} 44. Rxb3 {[%clk 0:00:36]}  Nd4 {[%clk 0:00:03]} 45. Rxb7 {[%clk 0:00:33]}  Bxb7 {[%clk 0:00:04]} 46. Kg3 {[%clk 0:00:30]}  Rf7 {[%clk 0:00:03]} 47. Rc1 {[%clk 0:00:26]}  Re7 {[%clk 0:00:02]} 48. Bd1 {[%clk 0:00:24]}  Ba6 {[%clk 0:00:02]} 49. Kh4 {[%clk 0:00:18]}  Rb7 {[%clk 0:00:02]} 50. Rc8+ {[%clk 0:00:17]}  Kf7 {[%clk 0:00:02]} 51. Ng5+ {[%clk 0:00:18]}  Ke7 {[%clk 0:00:03]} 52. Rg8 {[%clk 0:00:17]}  Rb1 {[%clk 0:00:03]} 53. Rxg7+ {[%clk 0:00:17]}  Kf8 {[%clk 0:00:03]} 54. Rf7+ {[%clk 0:00:18]}  Ke8 {[%clk 0:00:04]} 55. Ba4+ {[%clk 0:00:17]}  Kd8 {[%clk 0:00:03]} 56. Ne6+ {[%clk 0:00:17]}  Kc8 {[%clk 0:00:03]} 57. Rf8+ {[%clk 0:00:17]}  Kb7 {[%clk 0:00:04]} 58. Kg5 {[%clk 0:00:17]}  Kb6 {[%clk 0:00:04]} 59. h6 {[%clk 0:00:15]}  Ka5 {[%clk 0:00:04]} 60. h7 {[%clk 0:00:15]}  Rg1+ {[%clk 0:00:05]} 61. Kf6 {[%clk 0:00:15]}  Rh1 {[%clk 0:00:05]} 62. Be8 {[%clk 0:00:12]}  Nf3 {[%clk 0:00:03]} 63. Bg6 {[%clk 0:00:11]}  Nd2 {[%clk 0:00:01]} 64. h8=Q {[%clk 0:00:11]}  Nxe4+ {[%clk 0:00:02]} 65. Ke7 {[%clk 0:00:10]}  Rxh8 {[%clk 0:00:03]} 66. Rxh8 {[%clk 0:00:10]}  Bc4 {[%clk 0:00:03]} 67. f6 {[%clk 0:00:09]}  Bxd5 {[%clk 0:00:04]} 68. f7 {[%clk 0:00:09]}  Ng5 {[%clk 0:00:04]} 69. Nxg5 {[%clk 0:00:08]}  Bxf7 {[%clk 0:00:03]} 70. Bxf7 {[%clk 0:00:09]}  d5 {[%clk 0:00:04]} 71. Bxd5 {[%clk 0:00:09]}  e4 {[%clk 0:00:05]} 72. Bxe4 {[%clk 0:00:10]}  Kb4 {[%clk 0:00:05]} 73. Ke6 {[%clk 0:00:11]}  Kc3 {[%clk 0:00:05]} 74. Ke5 {[%clk 0:00:12]}  Kd2 {[%clk 0:00:06]} 75. Kd4 {[%clk 0:00:11]}  Ke2 {[%clk 0:00:06]} 76. Nh3 {[%clk 0:00:11]}  Kf1 {[%clk 0:00:06]} 77. Ke3 {[%clk 0:00:10]}  Ke1 {[%clk 0:00:06]} 78. Bc2 {[%clk 0:00:10]}  Kf1 {[%clk 0:00:06]} 79. Nf2 {[%clk 0:00:09]}  Kg1 {[%clk 0:00:06]} 80. Kf3 {[%clk 0:00:08]}  Kf1 {[%clk 0:00:06]} 81. Re8 {[%clk 0:00:05]}  Kg1 {[%clk 0:00:05]} 82. Ng4 {[%clk 0:00:05]}  Kf1 {[%clk 0:00:05]} 83. Bd3+ {[%clk 0:00:04]}  Kg1 {[%clk 0:00:05]} 84. Re1# {[%clk 0:00:04]} 1-0


[Site "https://www.chess.com"]

[Event "Titled Tuesday Blitz January 31 Late 2023"]
[White "Kaganskiy, Gleb"]
[Black "Kaplan, Avi Harrison"]
[WhiteFideId "4132025"]
[BlackFideId "30934559"]
[WhiteElo "2205"]
[BlackElo "2146"]
[Result "1-0"]
[Round "07"]
[TimeControl "180+2"]
[Date "2023.01.31"]
[WhiteClock "0:00:28"]
[BlackClock "0:00:02"]

1. e4 {[%clk 0:02:16]}  c5 {[%clk 0:02:58]} 2. Nf3 {[%clk 0:02:15]}  a6 {[%clk 0:02:58]} 3. c3 {[%clk 0:02:14]}  b5 {[%clk 0:02:50]} 4. d4 {[%clk 0:02:13]}  cxd4 {[%clk 0:02:50]} 5. cxd4 {[%clk 0:02:14]}  Bb7 {[%clk 0:02:51]} 6. Bd3 {[%clk 0:02:12]}  g6 {[%clk 0:02:50]} 7. O-O {[%clk 0:02:11]}  Bg7 {[%clk 0:02:50]} 8. a4 {[%clk 0:02:11]}  b4 {[%clk 0:02:47]} 9. Nbd2 {[%clk 0:02:09]}  Nf6 {[%clk 0:02:42]} 10. Re1 {[%clk 0:02:08]}  O-O {[%clk 0:02:40]} 11. Nb3 {[%clk 0:02:06]}  d6 {[%clk 0:02:31]} 12. h3 {[%clk 0:02:05]}  Nbd7 {[%clk 0:02:15]} 13. a5 {[%clk 0:02:03]}  Rc8 {[%clk 0:02:08]} 14. Bd2 {[%clk 0:02:02]}  Rb8 {[%clk 0:01:57]} 15. Ra4 {[%clk 0:01:56]}  Bc6 {[%clk 0:01:36]} 16. Rxb4 {[%clk 0:01:54]}  Rxb4 {[%clk 0:01:37]} 17. Bxb4 {[%clk 0:01:55]}  Qb8 {[%clk 0:01:37]} 18. Qd2 {[%clk 0:01:53]}  Qb7 {[%clk 0:01:10]} 19. d5 {[%clk 0:01:45]}  Bb5 {[%clk 0:01:02]} 20. Bxb5 {[%clk 0:01:43]}  Qxb5 {[%clk 0:01:03]} 21. Nfd4 {[%clk 0:01:43]}  Qb7 {[%clk 0:01:00]} 22. Nc6 {[%clk 0:01:43]}  Ne5 {[%clk 0:00:42]} 23. Nxe5 {[%clk 0:01:42]}  dxe5 {[%clk 0:00:42]} 24. Nc5 {[%clk 0:01:40]}  Qb5 {[%clk 0:00:20]} 25. Rc1 {[%clk 0:01:36]}  Rb8 {[%clk 0:00:20]} 26. Ba3 {[%clk 0:01:34]}  h5 {[%clk 0:00:19]} 27. f3 {[%clk 0:01:29]}  Kh7 {[%clk 0:00:19]} 28. Qd3 {[%clk 0:01:28]}  Qxa5 {[%clk 0:00:14]} 29. Qxa6 {[%clk 0:01:26]}  Qd2 {[%clk 0:00:11]} 30. Qc4 {[%clk 0:01:18]}  Bh6 {[%clk 0:00:10]} 31. Rf1 {[%clk 0:01:14]}  Be3+ {[%clk 0:00:10]} 32. Kh1 {[%clk 0:01:14]}  Rc8 {[%clk 0:00:11]} 33. b4 {[%clk 0:01:12]}  Nd7 {[%clk 0:00:11]} 34. Qd3 {[%clk 0:01:08]}  Nxc5 {[%clk 0:00:02]} 35. Qxd2 {[%clk 0:01:08]}  Bxd2 {[%clk 0:00:02]} 36. bxc5 {[%clk 0:01:07]}  Be3 {[%clk 0:00:03]} 37. c6 {[%clk 0:01:07]}  e6 {[%clk 0:00:01]} 38. d6 {[%clk 0:01:05]}  Bb6 {[%clk 0:00:01]} 39. c7 {[%clk 0:01:03]}  Bxc7 {[%clk 0:00:01]} 40. dxc7 {[%clk 0:01:04]}  Rxc7 {[%clk 0:00:02]} 41. Kh2 {[%clk 0:01:03]}  Ra7 {[%clk 0:00:02]} 42. Bb2 {[%clk 0:01:03]}  Ra2 {[%clk 0:00:03]} 43. Bxe5 {[%clk 0:01:03]}  Kh6 {[%clk 0:00:04]} 44. Bf4+ {[%clk 0:01:03]}  Kh7 {[%clk 0:00:05]} 45. h4 {[%clk 0:01:03]}  Rc2 {[%clk 0:00:06]} 46. Kg3 {[%clk 0:01:03]}  Ra2 {[%clk 0:00:07]} 47. Rd1 {[%clk 0:01:03]}  Ra5 {[%clk 0:00:08]} 48. Rd7 {[%clk 0:01:03]}  Kg8 {[%clk 0:00:08]} 49. Bg5 {[%clk 0:01:03]}  Kg7 {[%clk 0:00:08]} 50. f4 {[%clk 0:01:02]}  Ra3+ {[%clk 0:00:08]} 51. Kh2 {[%clk 0:01:02]}  Ra5 {[%clk 0:00:07]} 52. e5 {[%clk 0:01:02]}  Ra3 {[%clk 0:00:01]} 53. Bf6+ {[%clk 0:01:02]}  Kh6 {[%clk 0:00:02]} 54. Rd8 {[%clk 0:00:59]}  g5 {[%clk 0:00:03]} 55. Rh8+ {[%clk 0:00:56]}  Kg6 {[%clk 0:00:03]} 56. hxg5 {[%clk 0:00:55]}  Kf5 {[%clk 0:00:04]} 57. Rxh5 {[%clk 0:00:55]}  Kg4 {[%clk 0:00:03]} 58. Rh7 {[%clk 0:00:53]}  Kf5 {[%clk 0:00:04]} 59. Rxf7 {[%clk 0:00:52]}  Kg6 {[%clk 0:00:04]} 60. Re7 {[%clk 0:00:51]}  Kh5 {[%clk 0:00:04]} 61. Rh7+ {[%clk 0:00:50]}  Kg4 {[%clk 0:00:04]} 62. g6 {[%clk 0:00:49]}  Kf5 {[%clk 0:00:03]} 63. g7 {[%clk 0:00:49]}  Ra8 {[%clk 0:00:01]} 64. Rh8 {[%clk 0:00:48]}  Ra2 {[%clk 0:00:02]} 65. g8=Q {[%clk 0:00:47]}  Rxg2+ {[%clk 0:00:03]} 66. Kxg2 {[%clk 0:00:43]}  Ke4 {[%clk 0:00:02]} 67. Rh3 {[%clk 0:00:40]}  Kf5 {[%clk 0:00:02]} 68. Qg5+ {[%clk 0:00:38]}  Ke4 {[%clk 0:00:03]} 69. Re3+ {[%clk 0:00:37]}  Kxe3 {[%clk 0:00:03]} 70. f5+ {[%clk 0:00:37]}  Ke4 {[%clk 0:00:03]} 71. fxe6 {[%clk 0:00:36]}  Kd5 {[%clk 0:00:01]} 72. e7 {[%clk 0:00:36]}  Kd4 {[%clk 0:00:01]} 73. e6+ {[%clk 0:00:36]}  Ke4 {[%clk 0:00:02]} 74. Qe5+ {[%clk 0:00:36]}  Kd3 {[%clk 0:00:02]} 75. Qd4+ {[%clk 0:00:36]}  Kc2 {[%clk 0:00:01]} 76. Qc3+ {[%clk 0:00:35]}  Kd1 {[%clk 0:00:02]} 77. e8=Q {[%clk 0:00:29]}  Ke2 {[%clk 0:00:02]} 78. Qh5# {[%clk 0:00:28]} 1-0


[Site "https://www.chess.com"]

[Event "Titled Tuesday Blitz January 31 Late 2023"]
[White "Urbina Quiroz, Edwin"]
[Black "Sanchez, Robert"]
[WhiteFideId "6500650"]
[BlackFideId "2034360"]
[WhiteElo "2129"]
[BlackElo "1966"]
[Result "0-1"]
[Round "07"]
[TimeControl "180+2"]
[Date "2023.01.31"]
[WhiteClock "0:00:01"]
[BlackClock "0:00:09"]

1. e4 {[%clk 0:03:00]}  d5 {[%clk 0:02:59]} 2. exd5 {[%clk 0:03:00]}  Qxd5 {[%clk 0:03:00]} 3. Nc3 {[%clk 0:03:00]}  Qe6+ {[%clk 0:03:01]} 4. Qe2 {[%clk 0:03:00]}  Qg6 {[%clk 0:03:01]} 5. Nf3 {[%clk 0:02:59]}  Nc6 {[%clk 0:03:01]} 6. d3 {[%clk 0:02:59]}  Bg4 {[%clk 0:03:01]} 7. Be3 {[%clk 0:02:58]}  O-O-O {[%clk 0:03:01]} 8. O-O-O {[%clk 0:02:58]}  e5 {[%clk 0:02:58]} 9. h3 {[%clk 0:02:58]}  Bxf3 {[%clk 0:02:58]} 10. Qxf3 {[%clk 0:02:55]}  f5 {[%clk 0:02:58]} 11. g3 {[%clk 0:02:48]}  Nf6 {[%clk 0:02:54]} 12. h4 {[%clk 0:02:38]}  e4 {[%clk 0:02:40]} 13. dxe4 {[%clk 0:02:35]}  Rxd1+ {[%clk 0:02:38]} 14. Qxd1 {[%clk 0:02:34]}  fxe4 {[%clk 0:02:38]} 15. Bxa7 {[%clk 0:02:20]}  Bb4 {[%clk 0:02:36]} 16. Be3 {[%clk 0:02:11]}  Bxc3 {[%clk 0:02:30]} 17. bxc3 {[%clk 0:02:12]}  Rd8 {[%clk 0:02:28]} 18. Qe1 {[%clk 0:02:10]}  Kb8 {[%clk 0:02:25]} 19. Bc4 {[%clk 0:02:09]}  Qf5 {[%clk 0:02:22]} 20. Bb3 {[%clk 0:02:05]}  Nd5 {[%clk 0:02:19]} 21. Bd2 {[%clk 0:01:57]}  Ne5 {[%clk 0:01:50]} 22. Qe2 {[%clk 0:01:55]}  Nb6 {[%clk 0:01:45]} 23. Be3 {[%clk 0:01:46]}  Qf6 {[%clk 0:01:31]} 24. Rd1 {[%clk 0:01:43]}  Re8 {[%clk 0:01:20]} 25. Bd4 {[%clk 0:01:37]}  Qd6 {[%clk 0:01:14]} 26. Qb5 {[%clk 0:01:30]}  Nc6 {[%clk 0:01:03]} 27. Bc5 {[%clk 0:01:06]}  Qe5 {[%clk 0:00:54]} 28. a4 {[%clk 0:00:54]}  Qxc3 {[%clk 0:00:45]} 29. Kb1 {[%clk 0:00:52]}  Re5 {[%clk 0:00:34]} 30. Bd4 {[%clk 0:00:16]}  Qxd4 {[%clk 0:00:20]} 31. Rxd4 {[%clk 0:00:15]}  Rxb5 {[%clk 0:00:20]} 32. Rxe4 {[%clk 0:00:13]}  Re5 {[%clk 0:00:19]} 33. Rf4 {[%clk 0:00:12]}  Na5 {[%clk 0:00:15]} 34. Rf8+ {[%clk 0:00:11]}  Ka7 {[%clk 0:00:16]} 35. Rf7 {[%clk 0:00:12]}  Re2 {[%clk 0:00:12]} 36. Rxg7 {[%clk 0:00:06]}  Rxf2 {[%clk 0:00:13]} 37. Rxh7 {[%clk 0:00:06]}  Rg2 {[%clk 0:00:13]} 38. Rxc7 {[%clk 0:00:06]}  Rxg3 {[%clk 0:00:12]} 39. Be6 {[%clk 0:00:03]}  Rg1+ {[%clk 0:00:09]} 40. Kb2 {[%clk 0:00:01]}  Rh1 {[%clk 0:00:09]} 0-1


[Site "https://www.chess.com"]

[Event "Titled Tuesday Blitz January 31 Late 2023"]
[White "Reprintsev, Alexander"]
[Black "Rian, Kapriaga"]
[WhiteFideId "14100541"]
[BlackFideId "7103263"]
[WhiteElo "2253"]
[BlackElo "2089"]
[Result "1-0"]
[Round "07"]
[TimeControl "180+2"]
[Date "2023.01.31"]
[WhiteClock "0:00:12"]
[BlackClock "0:00:01"]

1. e4 {[%clk 0:02:57]}  c6 {[%clk 0:02:59]} 2. Nc3 {[%clk 0:02:55]}  d5 {[%clk 0:02:58]} 3. Nf3 {[%clk 0:02:55]}  Bg4 {[%clk 0:02:58]} 4. h3 {[%clk 0:02:38]}  Bxf3 {[%clk 0:02:57]} 5. Qxf3 {[%clk 0:02:37]}  Nf6 {[%clk 0:02:56]} 6. e5 {[%clk 0:02:36]}  Nfd7 {[%clk 0:02:55]} 7. Qg3 {[%clk 0:01:59]}  e6 {[%clk 0:02:52]} 8. f4 {[%clk 0:01:59]}  g6 {[%clk 0:02:48]} 9. h4 {[%clk 0:01:59]}  h5 {[%clk 0:02:48]} 10. b3 {[%clk 0:01:58]}  a6 {[%clk 0:02:43]} 11. Bb2 {[%clk 0:01:58]}  c5 {[%clk 0:02:42]} 12. O-O-O {[%clk 0:01:58]}  Nc6 {[%clk 0:02:42]} 13. Bd3 {[%clk 0:01:56]}  Qa5 {[%clk 0:02:16]} 14. Kb1 {[%clk 0:01:52]}  b5 {[%clk 0:02:12]} 15. Nxd5 {[%clk 0:01:50]}  c4 {[%clk 0:01:38]} 16. Bxg6 {[%clk 0:01:42]}  exd5 {[%clk 0:01:28]} 17. Bxf7+ {[%clk 0:01:38]}  Kxf7 {[%clk 0:01:26]} 18. e6+ {[%clk 0:01:38]}  Ke8 {[%clk 0:01:01]} 19. exd7+ {[%clk 0:01:37]}  Kxd7 {[%clk 0:01:00]} 20. Bxh8 {[%clk 0:01:13]}  Nb4 {[%clk 0:00:53]} 21. Qh3+ {[%clk 0:01:08]}  Kc6 {[%clk 0:00:44]} 22. a4 {[%clk 0:00:52]}  bxa4 {[%clk 0:00:38]} 23. Qe6+ {[%clk 0:00:52]}  Bd6 {[%clk 0:00:37]} 24. Be5 {[%clk 0:00:52]}  Rd8 {[%clk 0:00:36]} 25. Bxd6 {[%clk 0:00:51]}  Rxd6 {[%clk 0:00:34]} 26. Qe8+ {[%clk 0:00:48]}  Rd7 {[%clk 0:00:33]} 27. bxc4 {[%clk 0:00:40]}  a3 {[%clk 0:00:15]} 28. Rhe1 {[%clk 0:00:24]}  Qa4 {[%clk 0:00:10]} 29. cxd5+ {[%clk 0:00:16]}  Kc7 {[%clk 0:00:08]} 30. Qe5+ {[%clk 0:00:16]}  Kb7 {[%clk 0:00:06]} 31. Qc3 {[%clk 0:00:13]}  Rc7 {[%clk 0:00:05]} 32. Qb3 {[%clk 0:00:13]}  Ka7 {[%clk 0:00:01]} 33. Qxa4 {[%clk 0:00:12]} 1-0


[Site "https://www.chess.com"]

[Event "Titled Tuesday Blitz January 31 Late 2023"]
[White "Toncheva, Nadya"]
[Black "Mosquera, Miguel"]
[WhiteFideId "2924056"]
[BlackFideId "4401131"]
[WhiteElo "2295"]
[BlackElo "2371"]
[Result "1-0"]
[Round "07"]
[TimeControl "180+2"]
[Date "2023.01.31"]
[WhiteClock "0:01:14"]
[BlackClock "0:00:02"]

1. e4 {[%clk 0:03:00]}  c5 {[%clk 0:02:59]} 2. Nf3 {[%clk 0:03:00]}  d6 {[%clk 0:02:54]} 3. d4 {[%clk 0:03:00]}  cxd4 {[%clk 0:02:55]} 4. Nxd4 {[%clk 0:03:00]}  Nf6 {[%clk 0:02:55]} 5. Nc3 {[%clk 0:03:00]}  a6 {[%clk 0:02:52]} 6. Be3 {[%clk 0:03:00]}  e6 {[%clk 0:02:51]} 7. Qd2 {[%clk 0:02:50]}  b5 {[%clk 0:02:37]} 8. f3 {[%clk 0:02:45]}  Bb7 {[%clk 0:02:36]} 9. O-O-O {[%clk 0:02:44]}  h5 {[%clk 0:02:35]} 10. Kb1 {[%clk 0:02:44]}  Nbd7 {[%clk 0:02:30]} 11. Bd3 {[%clk 0:02:40]}  Rc8 {[%clk 0:02:15]} 12. Rhe1 {[%clk 0:02:39]}  Ne5 {[%clk 0:02:01]} 13. Bg5 {[%clk 0:02:33]}  Be7 {[%clk 0:01:56]} 14. f4 {[%clk 0:02:08]}  Nc4 {[%clk 0:01:54]} 15. Bxc4 {[%clk 0:02:08]}  bxc4 {[%clk 0:01:55]} 16. e5 {[%clk 0:02:00]}  dxe5 {[%clk 0:01:48]} 17. fxe5 {[%clk 0:02:00]}  Nd5 {[%clk 0:01:41]} 18. Bxe7 {[%clk 0:01:58]}  Qxe7 {[%clk 0:01:42]} 19. Nxd5 {[%clk 0:01:56]}  Bxd5 {[%clk 0:01:43]} 20. Nf5 {[%clk 0:01:47]}  exf5 {[%clk 0:01:41]} 21. Qxd5 {[%clk 0:01:47]}  O-O {[%clk 0:01:17]} 22. e6 {[%clk 0:01:42]}  Rfd8 {[%clk 0:00:57]} 23. Qxf5 {[%clk 0:01:41]}  Qxe6 {[%clk 0:00:27]} 24. Qxe6 {[%clk 0:01:32]}  fxe6 {[%clk 0:00:26]} 25. Kc1 {[%clk 0:01:30]}  Kf7 {[%clk 0:00:25]} 26. Rxd8 {[%clk 0:01:26]}  Rxd8 {[%clk 0:00:25]} 27. Re4 {[%clk 0:01:26]}  Rc8 {[%clk 0:00:21]} 28. Kd2 {[%clk 0:01:25]}  Kf6 {[%clk 0:00:19]} 29. Kc3 {[%clk 0:01:23]}  e5 {[%clk 0:00:10]} 30. Rxc4 {[%clk 0:01:23]}  Ra8 {[%clk 0:00:10]} 31. Rc7 {[%clk 0:01:21]}  e4 {[%clk 0:00:07]} 32. Kd4 {[%clk 0:01:21]}  Re8 {[%clk 0:00:06]} 33. Ke3 {[%clk 0:01:21]}  Re6 {[%clk 0:00:04]} 34. Rc5 {[%clk 0:01:19]}  g5 {[%clk 0:00:04]} 35. c4 {[%clk 0:01:18]}  Kg6 {[%clk 0:00:03]} 36. b4 {[%clk 0:01:17]}  g4 {[%clk 0:00:03]} 37. a3 {[%clk 0:01:15]}  h4 {[%clk 0:00:02]} 38. Rd5 {[%clk 0:01:14]} 1-0


[Site "https://www.chess.com"]

[Event "Titled Tuesday Blitz January 31 Late 2023"]
[White "Yedidia, Daniel"]
[Black "Todev, Simeon"]
[WhiteFideId "30905907"]
[BlackFideId "2925133"]
[WhiteElo "2041"]
[BlackElo "2033"]
[Result "1-0"]
[Round "07"]
[TimeControl "180+2"]
[Date "2023.01.31"]
[WhiteClock "0:00:06"]
[BlackClock "0:00:05"]

1. d4 {[%clk 0:03:00]}  Nf6 {[%clk 0:02:56]} 2. c4 {[%clk 0:03:00]}  e6 {[%clk 0:02:57]} 3. Nc3 {[%clk 0:03:01]}  Bb4 {[%clk 0:02:57]} 4. e3 {[%clk 0:02:59]}  c5 {[%clk 0:02:57]} 5. Qc2 {[%clk 0:02:55]}  d5 {[%clk 0:02:55]} 6. a3 {[%clk 0:02:54]}  Bxc3+ {[%clk 0:02:55]} 7. bxc3 {[%clk 0:02:52]}  Nc6 {[%clk 0:02:54]} 8. Nf3 {[%clk 0:02:50]}  O-O {[%clk 0:02:53]} 9. Bd3 {[%clk 0:02:46]}  cxd4 {[%clk 0:02:52]} 10. cxd4 {[%clk 0:02:46]}  dxc4 {[%clk 0:02:51]} 11. Qxc4 {[%clk 0:02:44]}  e5 {[%clk 0:02:44]} 12. dxe5 {[%clk 0:02:34]}  Nxe5 {[%clk 0:02:43]} 13. Nxe5 {[%clk 0:02:32]}  Qa5+ {[%clk 0:02:43]} 14. Bd2 {[%clk 0:02:30]}  Qxe5 {[%clk 0:02:42]} 15. Bc3 {[%clk 0:02:25]}  Qg5 {[%clk 0:02:41]} 16. Bxf6 {[%clk 0:01:50]}  Qxf6 {[%clk 0:02:31]} 17. O-O {[%clk 0:01:49]}  g6 {[%clk 0:02:23]} 18. Qb4 {[%clk 0:01:43]}  b6 {[%clk 0:02:14]} 19. Be4 {[%clk 0:01:37]}  Rb8 {[%clk 0:02:13]} 20. Rac1 {[%clk 0:01:35]}  Bb7 {[%clk 0:02:13]} 21. Rc7 {[%clk 0:01:36]}  a5 {[%clk 0:02:01]} 22. Qb1 {[%clk 0:01:20]}  Bxe4 {[%clk 0:01:46]} 23. Qxe4 {[%clk 0:01:21]}  Qd6 {[%clk 0:01:46]} 24. Rc3 {[%clk 0:01:14]}  Rfc8 {[%clk 0:01:45]} 25. Rd3 {[%clk 0:01:10]}  Qc5 {[%clk 0:01:43]} 26. h4 {[%clk 0:01:07]}  Re8 {[%clk 0:01:37]} 27. Qf4 {[%clk 0:01:02]}  Rbd8 {[%clk 0:01:33]} 28. Rfd1 {[%clk 0:00:55]}  Rxd3 {[%clk 0:01:31]} 29. Rxd3 {[%clk 0:00:56]}  Rc8 {[%clk 0:01:22]} 30. Rd7 {[%clk 0:00:53]}  Qc4 {[%clk 0:01:18]} 31. Rd8+ {[%clk 0:00:47]}  Kg7 {[%clk 0:01:11]} 32. Qe5+ {[%clk 0:00:47]}  Kh6 {[%clk 0:01:06]} 33. Qg5+ {[%clk 0:00:24]}  Kg7 {[%clk 0:01:06]} 34. Qe5+ {[%clk 0:00:24]}  Kh6 {[%clk 0:01:05]} 35. Rd5 {[%clk 0:00:24]}  Qxh4 {[%clk 0:00:54]} 36. Rd1 {[%clk 0:00:18]}  Rc5 {[%clk 0:00:46]} 37. Qe8 {[%clk 0:00:11]}  Kg7 {[%clk 0:00:39]} 38. g3 {[%clk 0:00:07]}  Qg4 {[%clk 0:00:34]} 39. Qd7 {[%clk 0:00:06]}  Qxd7 {[%clk 0:00:13]} 40. Rxd7 {[%clk 0:00:07]}  Rc3 {[%clk 0:00:13]} 41. Rb7 {[%clk 0:00:07]}  Rb3 {[%clk 0:00:07]} 42. Kg2 {[%clk 0:00:07]}  b5 {[%clk 0:00:07]} 43. Kf3 {[%clk 0:00:07]}  b4 {[%clk 0:00:05]} 44. axb4 {[%clk 0:00:06]}  axb4 {[%clk 0:00:06]} 45. Ke4 {[%clk 0:00:05]}  Kf6 {[%clk 0:00:05]} 46. f4 {[%clk 0:00:05]}  Ke6 {[%clk 0:00:05]} 47. Rb6+ {[%clk 0:00:05]}  Ke7 {[%clk 0:00:04]} 48. g4 {[%clk 0:00:06]}  Rb1 {[%clk 0:00:02]} 49. Ke5 {[%clk 0:00:05]}  Kf8 {[%clk 0:00:02]} 50. Kf6 {[%clk 0:00:04]}  Ke8 {[%clk 0:00:02]} 51. Rb8+ {[%clk 0:00:04]}  Kd7 {[%clk 0:00:02]} 52. Kxf7 {[%clk 0:00:04]}  b3 {[%clk 0:00:02]} 53. e4 {[%clk 0:00:04]}  Re1 {[%clk 0:00:02]} 54. e5 {[%clk 0:00:04]}  Re3 {[%clk 0:00:02]} 55. Rb5 {[%clk 0:00:03]}  Kc6 {[%clk 0:00:02]} 56. Rb8 {[%clk 0:00:03]}  Kc7 {[%clk 0:00:02]} 57. Rb4 {[%clk 0:00:03]}  Kc6 {[%clk 0:00:03]} 58. e6 {[%clk 0:00:03]}  Kc5 {[%clk 0:00:03]} 59. Rb8 {[%clk 0:00:03]}  Re4 {[%clk 0:00:03]} 60. e7 {[%clk 0:00:03]}  Rxf4+ {[%clk 0:00:04]} 61. Kg7 {[%clk 0:00:04]}  Re4 {[%clk 0:00:04]} 62. e8=Q {[%clk 0:00:04]}  Rxe8 {[%clk 0:00:05]} 63. Rxe8 {[%clk 0:00:05]}  h5 {[%clk 0:00:04]} 64. g5 {[%clk 0:00:04]}  h4 {[%clk 0:00:05]} 65. Kxg6 {[%clk 0:00:04]}  h3 {[%clk 0:00:05]} 66. Re1 {[%clk 0:00:05]}  h2 {[%clk 0:00:04]} 67. Kf5 {[%clk 0:00:05]}  Kc4 {[%clk 0:00:03]} 68. Kf4 {[%clk 0:00:06]}  Kc3 {[%clk 0:00:04]} 69. Kg3 {[%clk 0:00:06]}  b2 {[%clk 0:00:04]} 70. Kxh2 {[%clk 0:00:07]}  Kd2 {[%clk 0:00:05]} 71. Rg1 {[%clk 0:00:07]}  b1=Q {[%clk 0:00:05]} 72. Rxb1 {[%clk 0:00:06]} 1-0


[Site "https://www.chess.com"]